fUST/lending_fUST_20240306
["ID","MTS","AMOUNT","RATE_DAILY","PERIOD"]
[317238488,1709717447481,-156.05906714,0.00023998,2]
[317238489,1709717447490,-155.79481594,0.00023998,2]
[317238490,1709717447501,-699.6436162,0.00023998,2]
[317238491,1709717447513,-260.84462297,0.00023998,2]
[317238492,1709717447523,-77.39850083,0.00023998,2]
[317238493,1709717447537,-177.5590356,0.00023998,2]
[317238494,1709717447546,-239.85472817,0.00023998,7]
[317238495,1709717447556,-417.96193195,0.00023998,2]
[317238496,1709717447565,-416.77395,0.00023999,2]
[317238497,1709717447574,-132735.54933377,0.00024,6]
[317238530,1709718431134,-416.77395,0.00021893,2]
[317238531,1709718431155,-336.48470009,0.00021894,2]
[317238532,1709718431176,-2435.66381549,0.00021894,2]
[317238533,1709718431197,-150.0,0.000219,2]
[317238534,1709718431218,-239.777452,0.00022448,2]
[317238535,1709718431238,-331.15178634,0.00022797,2]
[317238536,1709718431259,-322.60302501,0.00023,2]
[317238537,1709718431279,-8241.44159152,0.00023049,2]
[317238538,1709718431305,-2100.05101219,0.0002305,2]
[317238539,1709718431328,-252.49465646,0.00023055,3]
[317238540,1709718431350,-284.40450491,0.0002306,3]
[317238541,1709718431372,-361.44201645,0.00023065,3]
[317238542,1709718431402,-5000.0,0.00023766,2]
[317238543,1709718431424,-300.0,0.000239,11]
[317238544,1709718431446,-2472.33054764,0.000239,2]
[317238545,1709718431565,-500.0,0.0002397,2]
[317238546,1709718431594,-50000.0,0.00023971,2]
[317238547,1709718431615,-155.10251152,0.00023998,2]
[317238548,1709718431637,-392.45548715,0.00023999,2]
[317238549,1709718431659,-500.0,0.00023999,2]
[317238550,1709718431682,-230.32751871,0.00023999,2]
[317238551,1709718431705,-500.0,0.00023999,2]
[317238552,1709718431729,-500.0,0.00023999,2]
[317238553,1709718431752,-500.0,0.00023999,2]
[317238554,1709718431779,-500.0,0.00023999,2]
[317238555,1709718431810,-500.0,0.00023999,2]
[317238556,1709718431834,-500.0,0.00023999,2]
[317238557,1709718431859,-500.0,0.00023999,2]
[317238558,1709718431885,-255.000003,0.00023999,2]
[317238559,1709718431908,-500.0,0.00023999,2]
[317238560,1709718431931,-42952.37691047,0.00024,6]
[317238611,1709718631781,-416.77395,0.00021899,2]
[317238613,1709718631792,-336.48470009,0.00021899,2]
[317238614,1709718631801,-150.0,0.000219,2]
[317238616,1709718631811,-164.4850471,0.0002306,2]
[317238619,1709718631822,-8241.44159152,0.00023767,2]
[317238620,1709718631832,-5000.0,0.00023768,2]
[317238622,1709718631842,-1346.74466752,0.00023999,2]
[317238711,1709718638027,-509.71,0.00023,7]
[317238713,1709718638037,-1080.92793695,0.00023999,2]
[317238714,1709718638047,-6417.51807825,0.00024,6]
[317238744,1709718640051,-3656.35036449,0.00024,6]
[317238747,1709718640064,-27667.6055877,0.00024,6]
[317238749,1709718640076,-17055.79257713,0.00024,6]
[317238786,1709718642997,-4394.71999753,0.00024,6]
[317238788,1709718643009,-778.95566319,0.00024,6]
[317238804,1709718647156,-416.77395,0.00023999,2]
[317238805,1709718647165,-336.48470009,0.00023999,2]
[317238806,1709718647174,-7271.22675711,0.00024,6]
[317238807,1709718647186,-394.8,0.00024,6]
[317238808,1709718647475,-45525.16134462,0.00024,6]
[317238886,1709719642111,-401.19311677,0.00020725,2]
[317238887,1709719642129,-336.48470009,0.00020725,2]
[317238888,1709719642148,-372.71317568,0.00020726,2]
[317238889,1709719642167,-333.59294239,0.00021799,2]
[317238890,1709719642186,-322.67112653,0.00022,2]
[317238891,1709719642207,-2004.94940033,0.00023,2]
[317238892,1709719642226,-621.90598809,0.00023,2]
[317238893,1709719642246,-6086.42676292,0.00023,2]
[317238949,1709719834011,-401.19311677,0.00022797,2]
[317238950,1709719834022,-275.93806263,0.00022798,2]
[317238951,1709719834031,-502.06222346,0.00023,2]
[317238952,1709719834041,-163.73243019,0.00023061,3]
[317238953,1709719834051,-857.61267906,0.00023061,2]
[317238954,1709719834062,-3323.65387418,0.00023061,2]
[317238955,1709719834074,-4060.17503828,0.00023061,2]
[317238956,1709719834083,-2552.36706542,0.00023062,2]
[317238957,1709719834092,-1357.13780437,0.00023063,2]
[317238958,1709719834102,-11999.07127927,0.00023065,2]
[317238959,1709719834114,-6199.93645124,0.00023065,2]
[317238960,1709719834124,-407.02,0.00023702,2]
[317238961,1709719834133,-500.0,0.00023768,2]
[317238962,1709719834142,-502.05851438,0.00023768,2]
[317238963,1709719834152,-5000.0,0.00023769,2]
[317238964,1709719834162,-5000.0,0.00023769,2]
[317238965,1709719834171,-300.0,0.000239,11]
[317238966,1709719834180,-7065.15352645,0.00023976,2]
[317238967,1709719834190,-157.20148807,0.00023998,2]
[317238968,1709719834199,-21.08860305,0.00023998,2]
[317239101,1709719839553,-407.71065545,0.00023998,2]
[317239104,1709719839563,-154.93802479,0.00023999,2]
[317239106,1709719839573,-500.0,0.00023999,2]
[317239108,1709719839583,-500.0,0.00023999,2]
[317239110,1709719839592,-164.6757,0.00023999,2]
[317239112,1709719839601,-14142.03836146,0.00024,6]
[317239115,1709719839622,-2318.6886388,0.00024,6]
[317239127,1709719839693,-4772.57630768,0.00024,6]
[317239187,1709719840259,-1690.496,0.00024,6]
[317239848,1709719846603,-401.19311677,0.00023999,2]
[317239851,1709719846612,-3845.27947832,0.00024,6]
[317239861,1709719846667,-4628.60871348,0.00024,6]
[317239864,1709719846678,-1624.99529074,0.00024,6]
[317239970,1709719847558,-10479.9372128,0.00024,6]
[317239972,1709719847569,-3231.43513257,0.00024,6]
[317247410,1709720800161,-155.27611261,0.00021337,2]
[317247424,1709720960141,-245.91700416,0.00021337,2]
[317247425,1709720960165,-502.06222346,0.00021337,2]
[317247426,1709720960427,560.2791059,0.00021124,2]
[317247430,1709720981988,502.06222346,0.00021337,2]
[317247433,1709721005973,502.06222346,0.00021124,2]
[317247435,1709721023976,502.06222346,0.00021124,2]
[317247591,1709721033638,-170.264845,0.00021624,2]
[317247593,1709721033648,-155.27487307,0.00022798,2]
[317247595,1709721033657,-10960.7,0.00023,2]
[317247597,1709721033667,-8241.44159152,0.00023,2]
[317247599,1709721033676,-1143.25232694,0.00023061,3]
[317247601,1709721033686,-172.11524593,0.00023061,3]
[317247603,1709721033696,-1000.0,0.00023061,7]
[317247605,1709721033705,-1195.12084168,0.00023071,2]
[317247607,1709721033715,-3980.1284196,0.00023071,2]
[317247609,1709721033724,-5471.46015021,0.00023071,2]
[317247611,1709721033733,-153.0,0.000231,2]
[317247613,1709721033743,-153.0,0.000231,2]
[317247615,1709721033752,-153.0,0.000231,2]
[317247617,1709721033761,-1535.34864786,0.00023836,2]
[317247619,1709721033772,-3464.65135214,0.00023836,2]
[317247621,1709721033781,-500.0,0.00023974,2]
[317247623,1709721033791,-8362.94258589,0.00023975,2]
[317248020,1709721043302,-401.19311677,0.00022797,2]
[317248022,1709721043314,-500.0,0.00023974,2]
[317248024,1709721043325,-314.6557,0.00023974,2]
[317248026,1709721043335,-650.22648509,0.00023975,2]
[317248061,1709721043976,290.75192392,0.00021124,2]
[317248206,1709721046283,-40986.83092902,0.00023975,2]
[317248207,1709721046293,-298.54909425,0.00023999,2]
[317248208,1709721046302,-25313.34818565,0.00024,6]
[317248275,1709722147117,-155.01550155,0.00020634,2]
[317248276,1709722147138,-372.71317568,0.00020635,2]
[317248277,1709722147159,-235.00096501,0.00020842,2]
[317248278,1709722148134,-193.95524373,0.00020842,2]
[317248279,1709722148155,-298.60298514,0.00020843,2]
[317248280,1709722153128,-102.59013163,0.00020843,2]
[317248281,1709722153148,-155.0,0.00020843,2]
[317248282,1709722153168,-195.891127,0.00021289,2]
[317248283,1709722153190,-12219.8073402,0.00021378,2]
[317248333,1709722232361,-787.30116785,0.00022,2]
[317248335,1709722232371,-336.48470009,0.00022798,2]
[317248337,1709722232381,-509.71,0.00023,7]
[317248338,1709722232390,-3366.50413206,0.00023,3]
[317248343,1709722232429,-401.19311677,0.00022797,2]
[317248344,1709722232439,-536.42864856,0.00023,3]
[317248346,1709722232448,-153.0,0.00023041,2]
[317248348,1709722232458,-153.0,0.00023041,2]
[317248350,1709722232467,-342.97569809,0.00023061,3]
[317248352,1709722232477,-1000.0,0.00023063,7]
[317248353,1709722232486,-18132.12905668,0.00023082,2]
[317248355,1709722232495,-50148.49540174,0.00023082,2]
[317248357,1709722232505,-298.78021042,0.00023088,2]
[317248359,1709722232515,-153.0,0.000231,2]
[317248360,1709722232524,-153.0,0.00023151,2]
[317248362,1709722232534,-153.0,0.00023151,2]
[317248364,1709722232544,-2150.67,0.00023287,2]
[317248366,1709722232554,-2150.67,0.00023287,2]
[317248368,1709722232564,-5000.0,0.00023846,2]
[317248370,1709722232574,-300.0,0.000239,11]
[317248371,1709722232584,-4000.0,0.000239,3]
[317248373,1709722232594,-4782.46347488,0.00023974,2]
[317248375,1709722232604,-294.64006495,0.00023998,2]
[317248377,1709722232616,-1080.92793695,0.00023998,2]
[317248378,1709722232626,-862.00475076,0.00023998,2]
[317248380,1709722232636,-671.74890914,0.00023998,2]
[317248382,1709722232646,-155.54452069,0.00023998,2]
[317248384,1709722232656,-206.2356527,0.00023998,2]
[317248385,1709722232666,-156.05906714,0.00023998,2]
[317248387,1709722232676,-155.79481594,0.00023998,2]
[317248389,1709722232685,-155.94432795,0.00023998,2]
[317248391,1709722232695,-410.44714014,0.00023998,2]
[317248392,1709722232706,-238.23343006,0.00023998,2]
[317248394,1709722232715,-155.8757247,0.00023998,2]
[317248396,1709722232724,-500.0,0.00023998,2]
[317248398,1709722232734,-500.0,0.00023998,2]
[317248399,1709722232743,-500.0,0.00023998,2]
[317248401,1709722232753,-500.0,0.00023998,2]
[317248403,1709722232762,-500.0,0.00023998,2]
[317248405,1709722232772,-500.0,0.00023998,2]
[317248407,1709722232782,-500.0,0.00023998,2]
[317248409,1709722232791,-500.0,0.00023998,2]
[317248410,1709722232800,-2150.67,0.00023999,2]
[317248412,1709722232810,-2150.67,0.00023999,2]
[317248414,1709722232821,-2150.67,0.00023999,2]
[317248416,1709722232830,-2150.67,0.00023999,2]
[317248418,1709722232840,-2150.67,0.00023999,2]
[317248419,1709722232850,-2150.67,0.00023999,2]
[317248421,1709722232859,-2150.67,0.00023999,2]
[317248423,1709722232869,-2150.67,0.00023999,2]
[317248425,1709722232878,-2150.67,0.00023999,2]
[317248426,1709722232889,-2150.67,0.00023999,2]
[317248428,1709722232901,-2150.67,0.00023999,2]
[317248430,1709722232911,-2150.67,0.00023999,2]
[317248431,1709722232921,-2150.67,0.00023999,2]
[317248433,1709722232931,-2150.67,0.00023999,2]
[317248434,1709722232941,-2150.67,0.00023999,2]
[317248436,1709722232950,-2150.67,0.00023999,2]
[317248438,1709722232960,-2150.67,0.00023999,2]
[317248449,1709722233080,-2150.67,0.00023999,2]
[317248451,1709722233090,-2150.67,0.00023999,2]
[317248453,1709722233099,-2150.67,0.00023999,2]
[317248454,1709722233108,-2150.67,0.00023999,2]
[317248456,1709722233118,-2150.79,0.00023999,2]
[317248458,1709722233128,-79381.30587685,0.00024,6]
[317248460,1709722233140,-41080.77673638,0.00024,6]
[317248486,1709722238358,-352.56167998,0.00024,6]
[317248488,1709722238415,-108654.65431431,0.00024,6]
[317248500,1709722240556,-13325.8,0.00024,6]
[317248503,1709722240627,-8567.90467861,0.00024,6]
[317248504,1709722240641,-5241.89848587,0.00024,6]
[317248545,1709722243458,-834.82193262,0.00024,6]
[317248548,1709722243469,-279.7755,0.00024,6]
[317248550,1709722243483,-20046.97380676,0.00024,6]
[317250798,1709722346161,251.0,0.000244,120]
[317250817,1709723250223,-401.19311677,0.00021484,2]
[317250818,1709723250243,-155.00155002,0.00021485,2]
[317250819,1709723250262,-333.59294239,0.00021488,2]
[317250820,1709723250282,-244.765367,0.00021488,2]
[317250821,1709723250301,-323.10499161,0.00021591,2]
[317250822,1709723250321,-150.0,0.000219,2]
[317250823,1709723250340,-336.48470009,0.00022798,2]
[317250824,1709723250361,-989.33416331,0.00023063,3]
[317250825,1709723250382,-76.38372137,0.0002309,2]
[317250826,1709723254110,-753.25865009,0.0002309,2]
[317250863,1709723432562,-401.19311677,0.00023089,2]
[317250864,1709723432572,-155.0,0.00023089,2]
[317250865,1709723432582,-30068.78852317,0.0002309,2]
[317250866,1709723432591,-615.5392669,0.0002309,2]
[317250867,1709723432600,-24262.31308752,0.0002309,2]
[317250868,1709723432610,-502.06222346,0.0002309,2]
[317250869,1709723432620,-500.0,0.00023853,2]
[317250870,1709723432630,-5000.0,0.00023854,2]
[317250871,1709723432640,-5000.0,0.00023854,2]
[317250872,1709723432650,-500.0,0.00023899,2]
[317250873,1709723432660,-177.5133228,0.000239,2]
[317250874,1709723432670,-525.66597128,0.000239,2]
[317250875,1709723432681,-6086.42676292,0.00023974,2]
[317250876,1709723432691,-5915.30692155,0.00023976,2]
[317250877,1709723432701,-392.45548715,0.00023998,2]
[317250878,1709723432712,-699.6436162,0.00023998,2]
[317250879,1709723432722,-155.39280924,0.00023998,2]
[317250880,1709723432734,-155.49207121,0.00023998,2]
[317250881,1709723432744,-155.10251152,0.00023998,2]
[317250882,1709723432754,-964.23834888,0.00023998,2]
[317250883,1709723432764,-500.0,0.00023999,2]
[317250884,1709723432774,-600.0,0.00023999,2]
[317250885,1709723432784,-500.0,0.00023999,2]
[317250886,1709723432794,-500.0,0.00023999,2]
[317250887,1709723432804,-500.0,0.00023999,2]
[317250888,1709723432813,-500.0,0.00023999,2]
[317250889,1709723432823,-500.0,0.00023999,2]
[317250890,1709723432833,-246.55725561,0.00023999,2]
[317250891,1709723432842,-500.0,0.00023999,2]
[317250892,1709723432852,-449.199999,0.00023999,2]
[317250893,1709723432861,-500.0,0.00023999,2]
[317250894,1709723432871,-500.0,0.00023999,2]
[317250895,1709723432880,-500.0,0.00023999,2]
[317250896,1709723432890,-500.0,0.00023999,2]
[317250897,1709723432901,-500.0,0.00023999,2]
[317250898,1709723432911,-500.0,0.00023999,2]
[317250899,1709723432920,-500.0,0.00023999,2]
[317250900,1709723432932,-432.22933724,0.00023999,2]
[317250901,1709723432943,-255.000003,0.00023999,2]
[317250902,1709723432952,-906784.87936458,0.00024,6]
[317250903,1709723432965,-1332.0,0.00024,6]
[317251085,1709723440835,-3853.0,0.00024,6]
[317251087,1709723440847,-34251.84447532,0.00024,6]
[317251089,1709723440858,-4811.41533947,0.00024,6]
[317251373,1709723443666,-4857.57947345,0.00024,6]
[317251387,1709723443791,-7324.99171623,0.00024,6]
[317251389,1709723443803,-1500.6215687,0.00024,6]
[317263403,1709724401169,-155.0,0.00021579,2]
[317263404,1709724401190,-0.27754379,0.0002158,2]
[317263408,1709724556105,-88477.53825509,0.0002158,2]
[317263409,1709724559570,150.0,0.0001948,2]
[317263417,1709724569241,-4852.92492252,0.0002158,2]
[317263418,1709724569261,-366.66541263,0.00021583,2]
[317263419,1709724569282,-168.881964,0.00021584,2]
[317263422,1709724586809,1882.75445796,0.0002158,2]
[317263436,1709724633625,-155.01550155,0.00021877,2]
[317263437,1709724633636,-247.030229,0.00021878,2]
[317263438,1709724633645,-289.0,0.00023,2]
[317263439,1709724633655,-635.46610118,0.00023063,3]
[317263441,1709724633665,-296.80024899,0.00023064,2]
[317263443,1709724633675,-502.06222346,0.0002309,2]
[317263445,1709724633685,-1105.46159674,0.000231,2]
[317263446,1709724633695,-32974.53824745,0.000231,2]
[317263447,1709724633704,-5842.82925258,0.000231,2]
[317263449,1709724633714,-1547.98860567,0.000231,2]
[317263451,1709724633723,-500.0,0.00023287,2]
[317263453,1709724633733,-500.0,0.00023287,2]
[317263455,1709724633743,-170.8795087,0.00023759,2]
[317263456,1709724633752,-344.00587177,0.00023862,2]
[317263459,1709724633762,-500.0,0.00023862,2]
[317263460,1709724633771,-5000.0,0.00023863,2]
[317263462,1709724633780,-4380.43403756,0.000239,2]
[317263464,1709724633790,-8241.44159152,0.00023974,2]
[317263466,1709724633800,-189.52627297,0.00023998,2]
[317263468,1709724633809,-516.850155,0.00023999,2]
[317263470,1709724633818,-500.0,0.00023999,2]
[317263472,1709724633829,-500.0,0.00023999,2]
[317263474,1709724633839,-500.0,0.00023999,2]
[317263476,1709724633849,-500.0,0.00023999,2]
[317263478,1709724633858,-500.0,0.00023999,2]
[317263480,1709724633868,-500.0,0.00023999,2]
[317263482,1709724633878,-500.0,0.00023999,2]
[317263484,1709724633889,-500.0,0.00023999,2]
[317263486,1709724633898,-500.0,0.00023999,2]
[317263488,1709724633907,-422.15,0.00023999,2]
[317263490,1709724633917,-614.43754569,0.00023999,2]
[317263492,1709724633927,-500.0,0.00023999,2]
[317263494,1709724633936,-500.0,0.00023999,2]
[317263496,1709724633946,-562.60702652,0.00023999,2]
[317263498,1709724633956,-151.0,0.00023999,2]
[317263500,1709724633966,-62933.08314439,0.00024,6]
[317263502,1709724633978,-463.7665836,0.00024,6]
[317263504,1709724633990,-150494.5342522,0.00024,6]
[317263758,1709724637896,-1339.18,0.00024,6]
[317263765,1709724637956,-5028.85818745,0.00024,6]
[317263768,1709724637968,-809.53245504,0.00024,6]
[317263959,1709724640055,-6714.49999979,0.00024,6]
[317264176,1709724646664,-1044.0,0.00024,6]
[317264178,1709724646676,-6787.67641373,0.00024,6]
[317266995,1709725035244,213.37856505,0.000211,14]
[317267029,1709725665725,152.55377159,0.0002,2]
[317267034,1709725745142,-372.71317568,0.00020889,2]
[317267035,1709725745163,-428.95620874,0.00021099,2]
[317267036,1709725745183,-57172.21818288,0.000211,2]
[317267037,1709725755106,-2515.40283657,0.000211,2]
[317267069,1709725834845,-248.16266,0.00022305,2]
[317267070,1709725834857,-1137.24512356,0.00022305,2]
[317267071,1709725834868,-1048.0919071,0.00022949,2]
[317267072,1709725834879,-621.90598809,0.00023,2]
[317267074,1709725834889,-211.82203373,0.00023066,3]
[317267076,1709725834899,-13179.93870463,0.00023103,2]
[317267078,1709725834909,-2956.83358288,0.00023103,2]
[317267106,1709725838182,-662.85805754,0.00023103,2]
[317267107,1709725838195,-3262.62879005,0.00023103,2]
[317267173,1709725840831,-850.35510717,0.00023103,2]
[317267174,1709725840842,-500.0,0.00023287,2]
[317267175,1709725840852,-500.0,0.00023287,2]
[317267176,1709725840862,-2027.54489283,0.000235,2]
[317267244,1709725843073,-599.70128647,0.000235,2]
[317267246,1709725843083,-200.0,0.000238,2]
[317267248,1709725843094,-5000.0,0.00023864,2]
[317267250,1709725843103,-5000.0,0.00023865,2]
[317267252,1709725843113,-5000.0,0.00023871,2]
[317267254,1709725843123,-500.0,0.00023899,2]
[317267256,1709725843134,-500.0,0.00023899,2]
[317267258,1709725843143,-12216.64973705,0.000239,2]
[317268584,1709726748163,-150.0,0.000218,2]
[317268585,1709726748184,-302.34939386,0.00022,2]
[317268586,1709726829305,-20.32173267,0.00022,2]
[317268587,1709726829325,-248.16266,0.00022698,2]
[317268588,1709726829345,-6739.13790019,0.00022999,2]
[317268589,1709726829365,-956.91208337,0.00023,2]
[317268591,1709726844098,-762.72964224,0.00023,2]
[317268641,1709727034983,-150.0,0.000209,2]
[317268642,1709727034993,-285.30767472,0.00023,2]
[317268643,1709727035005,-716.62796265,0.00023066,3]
[317268644,1709727035015,-9665.29783929,0.00023118,2]
[317268645,1709727035025,-2693.22162143,0.00023118,2]
[317268646,1709727035034,-386.99715142,0.00023118,2]
[317268647,1709727035045,-2148.54515912,0.00023118,2]
[317268648,1709727035056,-200.0,0.000237,2]
[317268649,1709727035065,-5000.0,0.00023876,2]
[317268650,1709727035075,-5000.0,0.00023878,2]
[317268651,1709727035085,-581.85805754,0.00023899,2]
[317268653,1709727035095,-500.0,0.00023899,2]
[317268654,1709727035106,-501.55701966,0.00023899,2]
[317268655,1709727035116,-500.0,0.00023899,2]
[317268656,1709727035125,-500.0,0.00023899,2]
[317268657,1709727035134,-52781.47930134,0.000239,2]
[317268658,1709727035143,-300.0,0.000239,11]
[317268659,1709727035152,-308.8017164,0.000239,2]
[317268660,1709727035161,-2472.33054764,0.000239,2]
[317268661,1709727035171,-500.0,0.00023997,2]
[317268662,1709727035181,-1965.24179194,0.00023998,2]
[317268663,1709727035190,-298.60298514,0.00023998,2]
[317268664,1709727035199,-155.01550155,0.00023998,2]
[317268665,1709727035208,-430.25737186,0.00023998,2]
[317268666,1709727035217,-3230.76159228,0.00023998,2]
[317269030,1709727040953,-267.7519532,0.00023998,2]
[317269032,1709727040967,-241.81331068,0.00023998,2]
[317269034,1709727040978,-263.12696635,0.00023998,2]
[317269036,1709727040988,-204.45263728,0.00023999,2]
[317269038,1709727040999,-151.0,0.00023999,2]
[317269040,1709727041008,-151.0,0.00023999,2]
[317269042,1709727041018,-151.0,0.00023999,2]
[317269044,1709727041029,-151.0,0.00023999,2]
[317269046,1709727041039,-151.0,0.00023999,2]
[317269048,1709727041048,-151.0,0.00023999,2]
[317269050,1709727041058,-151.0,0.00023999,2]
[317269052,1709727041067,-151.0,0.00023999,2]
[317269054,1709727041076,-151.0,0.00023999,2]
[317269056,1709727041087,-503.27198033,0.00023999,2]
[317269058,1709727041096,-400.0,0.00023999,2]
[317269060,1709727041105,-500.0,0.00023999,2]
[317269062,1709727041121,-500.0,0.00023999,2]
[317269064,1709727041131,-500.0,0.00023999,2]
[317269066,1709727041140,-500.0,0.00023999,2]
[317269068,1709727041149,-500.0,0.00023999,2]
[317269070,1709727041158,-500.0,0.00023999,2]
[317269071,1709727041167,-500.0,0.00023999,2]
[317269073,1709727041176,-500.0,0.00023999,2]
[317269075,1709727041185,-500.0,0.00023999,2]
[317269077,1709727041194,-500.0,0.00023999,2]
[317269079,1709727041203,-500.0,0.00023999,2]
[317269081,1709727041212,-500.0,0.00023999,2]
[317269083,1709727041221,-500.0,0.00023999,2]
[317269085,1709727041233,-500.0,0.00023999,2]
[317269087,1709727041242,-500.0,0.00023999,2]
[317269089,1709727041252,-500.0,0.00023999,2]
[317269091,1709727041261,-500.0,0.00023999,2]
[317269093,1709727041270,-187.99480948,0.00023999,2]
[317269101,1709727041331,-312.00519052,0.00023999,2]
[317269103,1709727041340,-500.0,0.00023999,2]
[317269104,1709727041351,-253.35,0.00023999,2]
[317269106,1709727041362,-500.0,0.00023999,2]
[317269108,1709727041371,-638.1283184,0.00023999,2]
[317269110,1709727041381,-7277.23936356,0.00024,6]
[317269315,1709727043380,-52348.56516823,0.00024,6]
[317269317,1709727043392,-1305.93550821,0.00024,6]
[317271808,1709727994116,-155.27892426,0.00023066,3]
[317271848,1709728234828,-56.54310947,0.00023066,3]
[317271849,1709728234838,-1363.77289667,0.00023128,2]
[317271850,1709728234848,-3461.33118666,0.00023128,2]
[317271851,1709728234858,-255.2,0.000236,2]
[317271852,1709728234867,-11842.4946512,0.0002399,2]
[317271866,1709728241529,-2509.11304326,0.0002399,2]
[317271886,1709728246170,-687.42084284,0.00023067,3]
[317271887,1709728246179,-22767.96994989,0.0002399,2]
[317271959,1709728246921,-2315.49322358,0.0002399,2]
[317271961,1709728246930,-745.08532418,0.00023998,2]
[317271963,1709728246939,-260.84462297,0.00023998,2]
[317271965,1709728246948,-169.02223696,0.00023998,2]
[317271967,1709728246957,-155.0,0.00023998,2]
[317271969,1709728246967,-896.11,0.00023998,2]
[317271971,1709728246976,-928.16,0.00023998,2]
[317271973,1709728246985,-649.98,0.00023998,2]
[317271975,1709728246994,-500.0,0.00023998,2]
[317271977,1709728247003,-1635.48761741,0.00023999,2]
[317271979,1709728247012,-350.2849749,0.00023999,2]
[317272003,1709728835589,197.44622841,0.0002,2]
[317272004,1709728835615,3823.1937544,0.0002,2]
[317272013,1709729382100,172.75654969,0.000189,2]
[317272068,1709729436271,-175.662113,0.00021675,2]
[317272069,1709729436283,-3142.51763785,0.00021897,2]
[317272070,1709729436294,-250.0,0.0002205,2]
[317272071,1709729436306,-197.1054443,0.00022122,2]
[317272072,1709729436317,-214.98838879,0.0002307,3]
[317272073,1709729436329,-32624.98648059,0.00023134,2]
[317272074,1709729436346,-270.33906,0.00023134,2]
[317272075,1709729436359,-1096.23563496,0.00023134,2]
[317272078,1709729436373,-887.56986156,0.00023134,2]
[317272080,1709729436384,-10244.08091742,0.00023134,2]
[317272085,1709729436407,-1920.76517202,0.00023134,2]
[317272089,1709729436420,-965.96425658,0.00023134,2]
[317272091,1709729436431,-22978.8479986,0.00023134,2]
[317272092,1709729436441,-209.87178841,0.00023287,2]
[317272094,1709729436457,-1471.46,0.00023287,2]
[317272096,1709729436468,-1022.93,0.00023287,2]
[317272097,1709729436478,-500.0,0.00023287,2]
[317272099,1709729436489,-372.1502476,0.000233,2]
[317272101,1709729436500,-257.7570699,0.000233,2]
[317272103,1709729436513,-405.0908022,0.000233,2]
[317272106,1709729436529,-441.7994775,0.000233,2]
[317272108,1709729436541,-306.9615974,0.000233,2]
[317272110,1709729436554,-5000.0,0.00023894,2]
[317272113,1709729436564,-300.0,0.000239,11]
[317272115,1709729436575,-172.75654969,0.000239,2]
[317272117,1709729436586,-407.01,0.00023908,2]
[317272119,1709729436598,-4060.17503828,0.00023974,2]
[317272122,1709729436611,-500.0,0.00023997,2]
[317272124,1709729436623,-500.0,0.00023997,2]
[317272126,1709729436635,-500.0,0.00023997,2]
[317272128,1709729436646,-500.0,0.00023997,2]
[317272130,1709729436660,-202.55340726,0.00023998,2]
[317272133,1709729436671,-263.31692282,0.00023998,2]
[317272135,1709729436681,-297.291771,0.00023998,2]
[317272137,1709729436692,-282.73490182,0.00023998,2]
[317272139,1709729436709,-155.40802906,0.00023998,2]
[317272141,1709729436720,-528.02051337,0.00023998,2]
[317272143,1709729436732,-155.16422253,0.00023998,2]
[317272146,1709729436743,-299.15887825,0.00023998,2]
[317272147,1709729436755,-561.62625949,0.00023998,2]
[317272148,1709729436766,-282.54840723,0.00023998,2]
[317272150,1709729436778,-162.27951835,0.00023998,2]
[317272153,1709729436789,-176.25741817,0.00023998,2]
[317272155,1709729436800,-198.53120514,0.00023998,2]
[317272157,1709729436811,-56417.09941852,0.00023998,2]
[317272159,1709729436823,-154.98450155,0.00023998,2]
[317272161,1709729436834,-157.20148807,0.00023998,2]
[317272163,1709729436845,-1471.46,0.00023998,2]